[Event "Titled Tuesday Blitz May 16 Late 2023"]
[White "Kujawski, Adam"]
[Black "KorolDimitriy75"]
[WhiteFideId "1100920"]
[WhiteElo "2054"]
[BlackElo "2418"]
[Result "0-1"]
[Round "11"]
[TimeControl "180+2"]
[Date "2023.05.16"]
[WhiteClock "0:00:00"]
[BlackClock "0:02:55"]

1. e4 {[%clk 0:03:00]}  c5 {[%clk 0:02:57]} 2. Nf3 {[%clk 0:03:01]}  d6 {[%clk 0:02:56]} 3. d4 {[%clk 0:03:01]}  cxd4 {[%clk 0:02:57]} 4. Nxd4 {[%clk 0:03:01]}  Nf6 {[%clk 0:02:58]} 5. Nc3 {[%clk 0:03:02]}  g6 {[%clk 0:02:58]} 6. Be3 {[%clk 0:03:01]}  Bg7 {[%clk 0:02:59]} 7. f3 {[%clk 0:03:02]}  O-O {[%clk 0:02:59]} 8. Qd2 {[%clk 0:03:02]}  Nc6 {[%clk 0:03:00]} 9. O-O-O {[%clk 0:03:02]}  d5 {[%clk 0:03:00]} 10. exd5 {[%clk 0:03:02]}  Nxd5 {[%clk 0:03:01]} 11. Nxc6 {[%clk 0:03:02]}  bxc6 {[%clk 0:03:02]} 12. Bd4 {[%clk 0:03:02]}  e5 {[%clk 0:03:01]} 13. Bc5 {[%clk 0:03:03]}  Be6 {[%clk 0:03:01]} 14. Ne4 {[%clk 0:03:02]}  Rb8 {[%clk 0:03:01]} 15. Bc4 {[%clk 0:02:29]}  Qc7 {[%clk 0:03:00]} 16. Bxf8 {[%clk 0:02:26]}  Bxf8 {[%clk 0:03:00]} 17. Bxd5 {[%clk 0:01:07]}  cxd5 {[%clk 0:03:01]} 18. Nf6+ {[%clk 0:01:07]}  Kh8 {[%clk 0:03:01]} 19. Nxd5 {[%clk 0:01:07]}  Qb7 {[%clk 0:03:00]} 20. b3 {[%clk 0:00:30]}  Rd8 {[%clk 0:02:59]} 21. c4 {[%clk 0:00:27]}  Rc8 {[%clk 0:02:59]} 22. Qc3 {[%clk 0:00:07]}  Bg7 {[%clk 0:02:57]} 23. Rhe1 {[%clk 0:00:00]}  Bxd5 {[%clk 0:02:55]} 0-1


[Site "https://www.chess.com"]

[Event "Titled Tuesday Blitz May 16 Late 2023"]
[White "Mazurkiewicz, Michal"]
[Black "Levar, Nenad"]
[WhiteFideId "1124943"]
[BlackFideId "14504430"]
[WhiteElo "2054"]
[BlackElo "2095"]
[Result "1-0"]
[Round "11"]
[TimeControl "180+2"]
[Date "2023.05.16"]
[WhiteClock "0:00:06"]
[BlackClock "0:00:36"]

1. e4 {[%clk 0:03:00]}  c6 {[%clk 0:02:59]} 2. d3 {[%clk 0:03:00]}  d5 {[%clk 0:02:59]} 3. Nd2 {[%clk 0:03:01]}  e5 {[%clk 0:02:58]} 4. Ngf3 {[%clk 0:03:01]}  Bd6 {[%clk 0:02:58]} 5. g3 {[%clk 0:03:00]}  f6 {[%clk 0:02:57]} 6. Bg2 {[%clk 0:02:59]}  Ne7 {[%clk 0:02:57]} 7. O-O {[%clk 0:02:54]}  O-O {[%clk 0:02:57]} 8. Re1 {[%clk 0:02:53]}  Bg4 {[%clk 0:02:53]} 9. h3 {[%clk 0:02:52]}  Bh5 {[%clk 0:02:53]} 10. c3 {[%clk 0:02:45]}  Nd7 {[%clk 0:02:51]} 11. g4 {[%clk 0:02:38]}  Bf7 {[%clk 0:02:50]} 12. d4 {[%clk 0:02:37]}  Qc7 {[%clk 0:02:42]} 13. b3 {[%clk 0:02:31]}  Rfe8 {[%clk 0:02:39]} 14. Bb2 {[%clk 0:02:31]}  Rad8 {[%clk 0:02:38]} 15. Qc2 {[%clk 0:02:30]}  h6 {[%clk 0:02:34]} 16. Rad1 {[%clk 0:02:24]}  Bg6 {[%clk 0:02:33]} 17. Nh4 {[%clk 0:02:23]}  Bh7 {[%clk 0:02:31]} 18. Nf5 {[%clk 0:02:22]}  Nxf5 {[%clk 0:02:30]} 19. gxf5 {[%clk 0:02:18]}  exd4 {[%clk 0:02:27]} 20. cxd4 {[%clk 0:02:17]}  dxe4 {[%clk 0:02:23]} 21. Nxe4 {[%clk 0:02:17]}  Bb4 {[%clk 0:02:11]} 22. Re3 {[%clk 0:02:09]}  Kh8 {[%clk 0:02:05]} 23. Qc4 {[%clk 0:01:56]}  Bf8 {[%clk 0:01:59]} 24. d5 {[%clk 0:01:40]}  Nb6 {[%clk 0:01:56]} 25. Qc1 {[%clk 0:01:24]}  Rxd5 {[%clk 0:01:52]} 26. Rxd5 {[%clk 0:00:47]}  Nxd5 {[%clk 0:01:50]} 27. Rd3 {[%clk 0:00:46]}  Qc8 {[%clk 0:01:38]} 28. Ng3 {[%clk 0:00:37]}  Bxf5 {[%clk 0:01:36]} 29. Nxf5 {[%clk 0:00:30]}  Qxf5 {[%clk 0:01:35]} 30. Qd1 {[%clk 0:00:29]}  Bc5 {[%clk 0:01:30]} 31. Rf3 {[%clk 0:00:27]}  Qe6 {[%clk 0:01:25]} 32. Bf1 {[%clk 0:00:13]}  Qe1 {[%clk 0:01:20]} 33. Qxe1 {[%clk 0:00:13]}  Rxe1 {[%clk 0:01:19]} 34. Kg2 {[%clk 0:00:14]}  Bd6 {[%clk 0:01:16]} 35. Bc4 {[%clk 0:00:12]}  Nf4+ {[%clk 0:01:14]} 36. Kg3 {[%clk 0:00:12]}  Nd3+ {[%clk 0:01:12]} 37. Kg4 {[%clk 0:00:12]}  Nxb2 {[%clk 0:01:12]} 38. Bf7 {[%clk 0:00:11]}  Re4+ {[%clk 0:01:09]} 39. Kh5 {[%clk 0:00:10]}  Re5+ {[%clk 0:01:06]} 40. Kg4 {[%clk 0:00:08]}  Rg5+ {[%clk 0:01:05]} 41. Kh4 {[%clk 0:00:08]}  Nd1 {[%clk 0:01:02]} 42. Rd3 {[%clk 0:00:07]}  Nxf2 {[%clk 0:00:56]} 43. Rxd6 {[%clk 0:00:07]}  Kh7 {[%clk 0:00:49]} 44. Bc4 {[%clk 0:00:07]}  Ne4 {[%clk 0:00:46]} 45. Bd3 {[%clk 0:00:07]}  f5 {[%clk 0:00:45]} 46. Rd7 {[%clk 0:00:06]}  Rg6 {[%clk 0:00:43]} 47. Rf7 {[%clk 0:00:05]}  Nf2 {[%clk 0:00:41]} 48. Bxf5 {[%clk 0:00:05]}  Kg8 {[%clk 0:00:36]} 49. Bxg6 {[%clk 0:00:06]} 1-0


[Site "https://www.chess.com"]

[Event "Titled Tuesday Blitz May 16 Late 2023"]
[White "rikchessmx"]
[Black "Novikova, Galina"]
[BlackFideId "4157095"]
[WhiteElo "2229"]
[BlackElo "1953"]
[Result "1-0"]
[Round "11"]
[TimeControl "180+2"]
[Date "2023.05.16"]
[WhiteClock "0:02:04"]
[BlackClock "0:01:19"]

1. e4 {[%clk 0:03:00]}  e6 {[%clk 0:02:59]} 2. d4 {[%clk 0:02:59]}  d5 {[%clk 0:02:59]} 3. Nc3 {[%clk 0:02:57]}  Bb4 {[%clk 0:02:59]} 4. e5 {[%clk 0:02:57]}  c5 {[%clk 0:02:59]} 5. a3 {[%clk 0:02:57]}  Bxc3+ {[%clk 0:03:00]} 6. bxc3 {[%clk 0:02:58]}  Ne7 {[%clk 0:03:00]} 7. Qg4 {[%clk 0:02:58]}  Kf8 {[%clk 0:03:00]} 8. Nf3 {[%clk 0:02:56]}  Qa5 {[%clk 0:03:00]} 9. Bd2 {[%clk 0:02:55]}  Qa4 {[%clk 0:03:01]} 10. Ra2 {[%clk 0:02:53]}  Nbc6 {[%clk 0:03:00]} 11. Qf4 {[%clk 0:02:48]}  b6 {[%clk 0:02:57]} 12. h4 {[%clk 0:02:46]}  Ba6 {[%clk 0:02:56]} 13. h5 {[%clk 0:02:45]}  Bxf1 {[%clk 0:02:53]} 14. Kxf1 {[%clk 0:02:44]}  Qc4+ {[%clk 0:02:53]} 15. Kg1 {[%clk 0:02:41]}  Qxa2 {[%clk 0:02:54]} 16. Ng5 {[%clk 0:02:41]}  Nd8 {[%clk 0:02:51]} 17. h6 {[%clk 0:02:38]}  g6 {[%clk 0:02:41]} 18. Qf6 {[%clk 0:02:38]}  Rg8 {[%clk 0:02:31]} 19. Nxh7+ {[%clk 0:02:36]}  Ke8 {[%clk 0:02:30]} 20. Qg5 {[%clk 0:02:35]}  Kd7 {[%clk 0:02:19]} 21. Nf6+ {[%clk 0:02:35]}  Kc7 {[%clk 0:02:19]} 22. Nxg8 {[%clk 0:02:35]}  Nxg8 {[%clk 0:02:19]} 23. h7 {[%clk 0:02:35]}  Nc6 {[%clk 0:02:05]} 24. h8=Q {[%clk 0:02:33]}  Qxc2 {[%clk 0:02:03]} 25. Rh7 {[%clk 0:02:31]}  Qd1+ {[%clk 0:01:54]} 26. Kh2 {[%clk 0:02:29]}  Kb7 {[%clk 0:01:41]} 27. Rxf7+ {[%clk 0:02:29]}  Ka6 {[%clk 0:01:42]} 28. Rg7 {[%clk 0:02:20]}  cxd4 {[%clk 0:01:34]} 29. Rxg8 {[%clk 0:02:18]}  dxc3 {[%clk 0:01:32]} 30. Bxc3 {[%clk 0:02:13]}  d4 {[%clk 0:01:23]} 31. Rxa8 {[%clk 0:02:11]}  dxc3 {[%clk 0:01:22]} 32. Qc8+ {[%clk 0:02:08]}  Kb5 {[%clk 0:01:23]} 33. a4+ {[%clk 0:02:08]}  Kb4 {[%clk 0:01:22]} 34. Qxc6 {[%clk 0:02:07]}  c2 {[%clk 0:01:20]} 35. Qb5+ {[%clk 0:02:06]}  Ka3 {[%clk 0:01:20]} 36. Qe3+ {[%clk 0:02:06]}  Ka2 {[%clk 0:01:20]} 37. Qbb3+ {[%clk 0:02:04]}  Ka1 {[%clk 0:01:19]} 38. Qec3# {[%clk 0:02:04]} 1-0


[Site "https://www.chess.com"]

[Event "Titled Tuesday Blitz May 16 Late 2023"]
[White "Mikhalsky, Vladimir"]
[Black "ritanovikova"]
[WhiteFideId "14144352"]
[WhiteElo "2236"]
[BlackElo "2148"]
[Result "1-0"]
[Round "11"]
[TimeControl "180+2"]
[Date "2023.05.16"]
[WhiteClock "0:01:33"]
[BlackClock "0:01:59"]

1. c4 {[%clk 0:02:26]}  Nf6 {[%clk 0:02:59]} 2. Nc3 {[%clk 0:02:25]}  g6 {[%clk 0:02:59]} 3. e4 {[%clk 0:02:24]}  d6 {[%clk 0:02:59]} 4. d4 {[%clk 0:02:24]}  Bg7 {[%clk 0:02:59]} 5. f3 {[%clk 0:02:24]}  O-O {[%clk 0:02:59]} 6. Be3 {[%clk 0:02:23]}  e5 {[%clk 0:02:59]} 7. Nge2 {[%clk 0:02:22]}  a6 {[%clk 0:02:57]} 8. Qd2 {[%clk 0:02:20]}  Re8 {[%clk 0:02:57]} 9. d5 {[%clk 0:02:20]}  b6 {[%clk 0:02:54]} 10. Nc1 {[%clk 0:02:20]}  Nbd7 {[%clk 0:02:53]} 11. Be2 {[%clk 0:02:18]}  Nc5 {[%clk 0:02:53]} 12. b4 {[%clk 0:02:17]}  Ncd7 {[%clk 0:02:51]} 13. Nb3 {[%clk 0:02:17]}  a5 {[%clk 0:02:51]} 14. bxa5 {[%clk 0:02:15]}  bxa5 {[%clk 0:02:51]} 15. a4 {[%clk 0:02:15]}  Ba6 {[%clk 0:02:48]} 16. Nb5 {[%clk 0:02:14]}  Nb6 {[%clk 0:02:43]} 17. Nxa5 {[%clk 0:02:13]}  Bxb5 {[%clk 0:02:39]} 18. cxb5 {[%clk 0:02:12]}  Nfd7 {[%clk 0:02:38]} 19. Nc6 {[%clk 0:02:09]}  Qh4+ {[%clk 0:02:38]} 20. Bf2 {[%clk 0:02:07]}  Qh6 {[%clk 0:02:35]} 21. Qxh6 {[%clk 0:02:02]}  Bxh6 {[%clk 0:02:35]} 22. a5 {[%clk 0:02:03]}  Nc5 {[%clk 0:02:24]} 23. Bxc5 {[%clk 0:01:50]}  dxc5 {[%clk 0:02:23]} 24. O-O {[%clk 0:01:47]}  Be3+ {[%clk 0:02:18]} 25. Kh1 {[%clk 0:01:46]}  Nd7 {[%clk 0:02:16]} 26. Bc4 {[%clk 0:01:44]}  Kg7 {[%clk 0:02:14]} 27. Rfb1 {[%clk 0:01:43]}  Bd4 {[%clk 0:02:13]} 28. Ra2 {[%clk 0:01:39]}  Nb6 {[%clk 0:02:05]} 29. axb6 {[%clk 0:01:37]}  cxb6 {[%clk 0:01:59]} 30. d6 {[%clk 0:01:33]} 1-0


[Site "https://www.chess.com"]

[Event "Titled Tuesday Blitz May 16 Late 2023"]
[White "Rose, Felix"]
[Black "Stead, Kerry"]
[WhiteFideId "5105722"]
[BlackFideId "3202577"]
[WhiteElo "2039"]
[BlackElo "1997"]
[Result "0-1"]
[Round "11"]
[TimeControl "180+2"]
[Date "2023.05.16"]
[WhiteClock "0:00:21"]
[BlackClock "0:00:13"]

1. d4 {[%clk 0:03:00]}  c5 {[%clk 0:02:58]} 2. d5 {[%clk 0:02:55]}  f5 {[%clk 0:02:58]} 3. e4 {[%clk 0:02:53]}  fxe4 {[%clk 0:02:55]} 4. Nc3 {[%clk 0:02:53]}  Nf6 {[%clk 0:02:55]} 5. Bg5 {[%clk 0:02:52]}  d6 {[%clk 0:02:51]} 6. Bb5+ {[%clk 0:02:49]}  Bd7 {[%clk 0:02:50]} 7. a4 {[%clk 0:02:48]}  a6 {[%clk 0:02:49]} 8. Bc4 {[%clk 0:02:47]}  g6 {[%clk 0:02:44]} 9. Nge2 {[%clk 0:02:43]}  Bg7 {[%clk 0:02:43]} 10. Qc1 {[%clk 0:02:42]}  h5 {[%clk 0:02:38]} 11. Ng3 {[%clk 0:02:37]}  Bf5 {[%clk 0:02:33]} 12. h4 {[%clk 0:02:37]}  Nbd7 {[%clk 0:02:31]} 13. a5 {[%clk 0:02:37]}  Qc7 {[%clk 0:02:28]} 14. O-O {[%clk 0:02:35]}  Ne5 {[%clk 0:02:26]} 15. Bb3 {[%clk 0:02:33]}  O-O-O {[%clk 0:02:24]} 16. Re1 {[%clk 0:02:27]}  c4 {[%clk 0:02:22]} 17. Ba4 {[%clk 0:02:27]}  Qc5 {[%clk 0:02:21]} 18. Bxf6 {[%clk 0:02:22]}  Bxf6 {[%clk 0:02:20]} 19. Ngxe4 {[%clk 0:02:17]}  Bxe4 {[%clk 0:02:14]} 20. Nxe4 {[%clk 0:02:17]}  Qxd5 {[%clk 0:02:11]} 21. Qe3 {[%clk 0:02:00]}  Ng4 {[%clk 0:02:02]} 22. Qa7 {[%clk 0:01:43]}  Bd4 {[%clk 0:01:57]} 23. Rad1 {[%clk 0:01:18]}  Bxa7 {[%clk 0:01:50]} 24. Rxd5 {[%clk 0:01:18]}  Rhf8 {[%clk 0:01:50]} 25. Re2 {[%clk 0:01:10]}  Kc7 {[%clk 0:01:43]} 26. Kf1 {[%clk 0:00:57]}  e6 {[%clk 0:01:36]} 27. Rg5 {[%clk 0:00:49]}  d5 {[%clk 0:01:35]} 28. Nd2 {[%clk 0:00:36]}  Nxf2 {[%clk 0:01:28]} 29. Nf3 {[%clk 0:00:36]}  Ne4 {[%clk 0:01:18]} 30. Rxg6 {[%clk 0:00:37]}  Rg8 {[%clk 0:01:18]} 31. Rxg8 {[%clk 0:00:31]}  Rxg8 {[%clk 0:01:18]} 32. Ke1 {[%clk 0:00:31]}  Kd6 {[%clk 0:01:11]} 33. b4 {[%clk 0:00:19]}  Nc3 {[%clk 0:01:08]} 34. Re5 {[%clk 0:00:18]}  Nxa4 {[%clk 0:01:07]} 35. Rxh5 {[%clk 0:00:19]}  Nc3 {[%clk 0:01:01]} 36. Rh7 {[%clk 0:00:19]}  Nb5 {[%clk 0:00:51]} 37. Rxb7 {[%clk 0:00:18]}  Be3 {[%clk 0:00:48]} 38. Ke2 {[%clk 0:00:16]}  Kc6 {[%clk 0:00:38]} 39. Re7 {[%clk 0:00:15]}  d4 {[%clk 0:00:32]} 40. Rxe6+ {[%clk 0:00:13]}  Kd7 {[%clk 0:00:30]} 41. Rxa6 {[%clk 0:00:13]}  Rxg2+ {[%clk 0:00:30]} 42. Ke1 {[%clk 0:00:14]}  Rxc2 {[%clk 0:00:20]} 43. Rb6 {[%clk 0:00:12]}  Nc3 {[%clk 0:00:18]} 44. Kf1 {[%clk 0:00:12]}  Rf2+ {[%clk 0:00:15]} 45. Kg1 {[%clk 0:00:13]}  Rxf3+ {[%clk 0:00:16]} 46. Kg2 {[%clk 0:00:13]}  Rf2+ {[%clk 0:00:16]} 47. Kg3 {[%clk 0:00:14]}  Ne4+ {[%clk 0:00:16]} 48. Kg4 {[%clk 0:00:14]}  Rf4+ {[%clk 0:00:15]} 49. Kh3 {[%clk 0:00:14]}  Bf2 {[%clk 0:00:15]} 50. h5 {[%clk 0:00:14]}  Rh4+ {[%clk 0:00:15]} 51. Kg2 {[%clk 0:00:14]}  Rxh5 {[%clk 0:00:15]} 52. a6 {[%clk 0:00:15]}  Nc3 {[%clk 0:00:13]} 53. Kxf2 {[%clk 0:00:15]}  d3 {[%clk 0:00:13]} 54. Ke3 {[%clk 0:00:15]}  Re5+ {[%clk 0:00:12]} 55. Kd2 {[%clk 0:00:15]}  Ne4+ {[%clk 0:00:12]} 56. Kd1 {[%clk 0:00:16]}  c3 {[%clk 0:00:12]} 57. a7 {[%clk 0:00:17]}  c2+ {[%clk 0:00:12]} 58. Kc1 {[%clk 0:00:17]}  Re8 {[%clk 0:00:12]} 59. Rb8 {[%clk 0:00:18]}  Nc3 {[%clk 0:00:10]} 60. Rxe8 {[%clk 0:00:17]}  Na2+ {[%clk 0:00:10]} 61. Kd2 {[%clk 0:00:18]}  c1=Q+ {[%clk 0:00:10]} 62. Kxd3 {[%clk 0:00:18]}  Qc3+ {[%clk 0:00:10]} 63. Ke4 {[%clk 0:00:18]}  Qxb4+ {[%clk 0:00:10]} 64. Kf5 {[%clk 0:00:18]}  Qa5+ {[%clk 0:00:09]} 65. Kg6 {[%clk 0:00:18]}  Kxe8 {[%clk 0:00:09]} 66. a8=Q+ {[%clk 0:00:18]}  Qxa8 {[%clk 0:00:09]} 67. Kf5 {[%clk 0:00:18]}  Qd5+ {[%clk 0:00:10]} 68. Kf4 {[%clk 0:00:19]}  Qd3 {[%clk 0:00:09]} 69. Ke5 {[%clk 0:00:19]}  Kf7 {[%clk 0:00:10]} 70. Kf4 {[%clk 0:00:19]}  Kf6 {[%clk 0:00:10]} 71. Kg4 {[%clk 0:00:19]}  Qf1 {[%clk 0:00:10]} 72. Kg3 {[%clk 0:00:20]}  Kg5 {[%clk 0:00:10]} 73. Kh2 {[%clk 0:00:19]}  Qf4+ {[%clk 0:00:10]} 74. Kg2 {[%clk 0:00:20]}  Qe3 {[%clk 0:00:10]} 75. Kh2 {[%clk 0:00:20]}  Kg4 {[%clk 0:00:11]} 76. Kg2 {[%clk 0:00:20]}  Qe2+ {[%clk 0:00:12]} 77. Kh1 {[%clk 0:00:20]}  Kg3 {[%clk 0:00:12]} 78. Kg1 {[%clk 0:00:21]}  Qg2# {[%clk 0:00:13]} 0-1


[Site "https://www.chess.com"]

[Event "Titled Tuesday Blitz May 16 Late 2023"]
[White "Milovic, Aleksandra"]
[Black "Prydun, Andriy"]
[WhiteFideId "933988"]
[BlackFideId "14145898"]
[WhiteElo "2000"]
[BlackElo "2164"]
[Result "0-1"]
[Round "11"]
[TimeControl "180+2"]
[Date "2023.05.16"]
[WhiteClock "0:00:10"]
[BlackClock "0:00:24"]

1. e4 {[%clk 0:02:51]}  c6 {[%clk 0:03:00]} 2. d4 {[%clk 0:02:51]}  d5 {[%clk 0:03:00]} 3. Nc3 {[%clk 0:02:52]}  dxe4 {[%clk 0:02:59]} 4. Nxe4 {[%clk 0:02:52]}  Nf6 {[%clk 0:03:00]} 5. Nxf6+ {[%clk 0:02:52]}  exf6 {[%clk 0:03:01]} 6. c3 {[%clk 0:02:52]}  Bd6 {[%clk 0:03:00]} 7. Bd3 {[%clk 0:02:52]}  h5 {[%clk 0:02:47]} 8. Ne2 {[%clk 0:02:50]}  h4 {[%clk 0:02:45]} 9. Qc2 {[%clk 0:02:44]}  h3 {[%clk 0:02:44]} 10. g3 {[%clk 0:02:44]}  Bg4 {[%clk 0:02:43]} 11. Be3 {[%clk 0:02:38]}  Bf3 {[%clk 0:02:36]} 12. Rg1 {[%clk 0:02:37]}  Nd7 {[%clk 0:02:35]} 13. O-O-O {[%clk 0:02:35]}  Qc7 {[%clk 0:02:32]} 14. Rde1 {[%clk 0:02:33]}  O-O-O {[%clk 0:02:31]} 15. Kb1 {[%clk 0:02:31]}  Rde8 {[%clk 0:02:31]} 16. Nf4 {[%clk 0:02:17]}  Re7 {[%clk 0:02:22]} 17. Bf1 {[%clk 0:02:16]}  g5 {[%clk 0:02:15]} 18. Nd3 {[%clk 0:02:01]}  Kb8 {[%clk 0:02:09]} 19. Be2 {[%clk 0:01:59]}  Be4 {[%clk 0:02:05]} 20. Ka1 {[%clk 0:01:59]}  Bf5 {[%clk 0:02:01]} 21. Qd1 {[%clk 0:01:55]}  Nb6 {[%clk 0:01:48]} 22. Bg4 {[%clk 0:01:52]}  Bc8 {[%clk 0:01:42]} 23. Bxc8 {[%clk 0:01:48]}  Qxc8 {[%clk 0:01:27]} 24. Qf3 {[%clk 0:01:47]}  Rh6 {[%clk 0:01:10]} 25. Bd2 {[%clk 0:01:34]}  Nc4 {[%clk 0:01:01]} 26. Bc1 {[%clk 0:01:33]}  Rh8 {[%clk 0:00:58]} 27. Rxe7 {[%clk 0:01:31]}  Bxe7 {[%clk 0:00:58]} 28. Re1 {[%clk 0:01:32]}  Re8 {[%clk 0:00:58]} 29. Qe2 {[%clk 0:01:20]}  Nd6 {[%clk 0:00:56]} 30. Qf1 {[%clk 0:01:15]}  g4 {[%clk 0:00:56]} 31. Bf4 {[%clk 0:01:12]}  Ka8 {[%clk 0:00:55]} 32. Nc5 {[%clk 0:01:11]}  Bf8 {[%clk 0:00:55]} 33. a3 {[%clk 0:01:01]}  b6 {[%clk 0:00:49]} 34. Nd3 {[%clk 0:00:59]}  Qf5 {[%clk 0:00:47]} 35. Bxd6 {[%clk 0:00:51]}  Rxe1+ {[%clk 0:00:45]} 36. Qxe1 {[%clk 0:00:50]}  Bxd6 {[%clk 0:00:45]} 37. Qe8+ {[%clk 0:00:48]}  Kb7 {[%clk 0:00:46]} 38. Qxf7+ {[%clk 0:00:47]}  Bc7 {[%clk 0:00:46]} 39. Qc4 {[%clk 0:00:42]}  Qe4 {[%clk 0:00:46]} 40. Ka2 {[%clk 0:00:35]}  Qg2 {[%clk 0:00:44]} 41. Qf7 {[%clk 0:00:29]}  Qxh2 {[%clk 0:00:42]} 42. Qxf6 {[%clk 0:00:26]}  Qg2 {[%clk 0:00:41]} 43. Qf7 {[%clk 0:00:22]}  Qd5+ {[%clk 0:00:39]} 44. Qxd5 {[%clk 0:00:18]}  cxd5 {[%clk 0:00:39]} 45. f4 {[%clk 0:00:16]}  h2 {[%clk 0:00:38]} 46. Nf2 {[%clk 0:00:16]}  Bxf4 {[%clk 0:00:36]} 47. Nh1 {[%clk 0:00:14]}  Bg5 {[%clk 0:00:28]} 48. Kb1 {[%clk 0:00:15]}  Kc6 {[%clk 0:00:27]} 49. Kc2 {[%clk 0:00:13]}  Kb5 {[%clk 0:00:28]} 50. b3 {[%clk 0:00:12]}  a5 {[%clk 0:00:27]} 51. Kd3 {[%clk 0:00:12]}  a4 {[%clk 0:00:27]} 52. c4+ {[%clk 0:00:13]}  Kc6 {[%clk 0:00:23]} 53. bxa4 {[%clk 0:00:11]}  Bc1 {[%clk 0:00:21]} 54. c5 {[%clk 0:00:09]}  Bxa3 {[%clk 0:00:19]} 55. cxb6 {[%clk 0:00:08]}  Kxb6 {[%clk 0:00:19]} 56. Ke3 {[%clk 0:00:09]}  Bc1+ {[%clk 0:00:19]} 57. Kd3 {[%clk 0:00:09]}  Ka5 {[%clk 0:00:19]} 58. Kc2 {[%clk 0:00:09]}  Be3 {[%clk 0:00:19]} 59. Kd3 {[%clk 0:00:08]}  Bg1 {[%clk 0:00:19]} 60. Kc3 {[%clk 0:00:04]}  Kxa4 {[%clk 0:00:19]} 61. Kd3 {[%clk 0:00:05]}  Kb3 {[%clk 0:00:19]} 62. Ke2 {[%clk 0:00:05]}  Kc2 {[%clk 0:00:19]} 63. Kf1 {[%clk 0:00:05]}  Kd1 {[%clk 0:00:19]} 64. Kg2 {[%clk 0:00:05]}  Ke2 {[%clk 0:00:19]} 65. Nf2 {[%clk 0:00:05]}  Bxf2 {[%clk 0:00:19]} 66. Kh1 {[%clk 0:00:05]}  Bxd4 {[%clk 0:00:19]} 67. Kg2 {[%clk 0:00:05]}  Bc5 {[%clk 0:00:20]} 68. Kh1 {[%clk 0:00:06]}  d4 {[%clk 0:00:21]} 69. Kg2 {[%clk 0:00:07]}  d3 {[%clk 0:00:22]} 70. Kh1 {[%clk 0:00:08]}  d2 {[%clk 0:00:23]} 71. Kg2 {[%clk 0:00:09]}  d1=Q {[%clk 0:00:23]} 72. Kxh2 {[%clk 0:00:10]}  Qg1# {[%clk 0:00:24]} 0-1


[Site "https://www.chess.com"]

[Event "Titled Tuesday Blitz May 16 Late 2023"]
[White "Gu, Ethan"]
[Black "KSho99"]
[WhiteFideId "30909236"]
[WhiteElo "2237"]
[BlackElo "2151"]
[Result "1-0"]
[Round "11"]
[TimeControl "180+2"]
[Date "2023.05.16"]
[WhiteClock "0:01:01"]
[BlackClock "0:00:16"]

1. e4 {[%clk 0:03:00]}  g6 {[%clk 0:02:43]} 2. d4 {[%clk 0:02:59]}  Bg7 {[%clk 0:02:43]} 3. h4 {[%clk 0:02:57]}  c5 {[%clk 0:02:32]} 4. c3 {[%clk 0:02:52]}  d5 {[%clk 0:02:17]} 5. e5 {[%clk 0:02:38]}  Nc6 {[%clk 0:02:16]} 6. h5 {[%clk 0:02:36]}  cxd4 {[%clk 0:02:02]} 7. cxd4 {[%clk 0:02:34]}  Qb6 {[%clk 0:02:02]} 8. h6 {[%clk 0:02:22]}  Bf8 {[%clk 0:01:56]} 9. Nc3 {[%clk 0:02:22]}  Qxd4 {[%clk 0:01:48]} 10. Nxd5 {[%clk 0:01:33]}  Qxe5+ {[%clk 0:01:40]} 11. Be3 {[%clk 0:01:31]}  e6 {[%clk 0:01:16]} 12. Nc3 {[%clk 0:01:28]}  Bb4 {[%clk 0:00:53]} 13. Rc1 {[%clk 0:01:24]}  Nf6 {[%clk 0:00:43]} 14. Nf3 {[%clk 0:01:23]}  Qa5 {[%clk 0:00:34]} 15. Bc4 {[%clk 0:01:19]}  Ne5 {[%clk 0:00:30]} 16. Nxe5 {[%clk 0:01:10]}  Qxe5 {[%clk 0:00:30]} 17. O-O {[%clk 0:01:10]}  Qh5 {[%clk 0:00:29]} 18. Qd4 {[%clk 0:01:07]}  Ng4 {[%clk 0:00:23]} 19. Bb5+ {[%clk 0:01:02]}  Ke7 {[%clk 0:00:16]} 20. Qxb4+ {[%clk 0:01:01]} 1-0


[Site "https://www.chess.com"]

[Event "Titled Tuesday Blitz May 16 Late 2023"]
[White "Fuentes Godoy, Lilia Ivonne"]
[Black "Dmitriev, Sergey"]
[WhiteFideId "5104130"]
[BlackFideId "14101785"]
[WhiteElo "2096"]
[BlackElo "2132"]
[Result "1-0"]
[Round "11"]
[TimeControl "180+2"]
[Date "2023.05.16"]
[WhiteClock "0:02:41"]
[BlackClock "0:01:51"]

1. d4 {[%clk 0:03:00]}  d6 {[%clk 0:02:57]} 2. c4 {[%clk 0:03:00]}  g6 {[%clk 0:02:56]} 3. Nc3 {[%clk 0:03:00]}  Bg7 {[%clk 0:02:57]} 4. Nf3 {[%clk 0:03:00]}  Nf6 {[%clk 0:02:57]} 5. g3 {[%clk 0:03:00]}  O-O {[%clk 0:02:56]} 6. Bg2 {[%clk 0:02:58]}  c6 {[%clk 0:02:56]} 7. O-O {[%clk 0:02:58]}  Bf5 {[%clk 0:02:53]} 8. Re1 {[%clk 0:02:54]}  Ne4 {[%clk 0:02:43]} 9. Nxe4 {[%clk 0:02:49]}  Bxe4 {[%clk 0:02:42]} 10. b3 {[%clk 0:02:48]}  Nd7 {[%clk 0:02:39]} 11. Bb2 {[%clk 0:02:49]}  e5 {[%clk 0:02:31]} 12. Rc1 {[%clk 0:02:46]}  Qe7 {[%clk 0:02:24]} 13. dxe5 {[%clk 0:02:46]}  Nxe5 {[%clk 0:02:18]} 14. Nxe5 {[%clk 0:02:45]}  Bxe5 {[%clk 0:02:10]} 15. Bxe5 {[%clk 0:02:43]}  Qxe5 {[%clk 0:02:08]} 16. Bxe4 {[%clk 0:02:42]}  Qxe4 {[%clk 0:02:07]} 17. Qxd6 {[%clk 0:02:43]}  Rad8 {[%clk 0:02:02]} 18. Qb4 {[%clk 0:02:42]}  Rd2 {[%clk 0:01:51]} 19. Qxd2 {[%clk 0:02:41]} 1-0


[Site "https://www.chess.com"]

[Event "Titled Tuesday Blitz May 16 Late 2023"]
[White "Vargas, Mauricio"]
[Black "Sanchez, Robert"]
[WhiteFideId "4404572"]
[BlackFideId "2034360"]
[WhiteElo "1986"]
[BlackElo "1848"]
[Result "1-0"]
[Round "11"]
[TimeControl "180+2"]
[Date "2023.05.16"]
[WhiteClock "0:02:31"]
[BlackClock "0:02:15"]

1. e4 {[%clk 0:02:58]}  e6 {[%clk 0:02:57]} 2. f4 {[%clk 0:02:57]}  d5 {[%clk 0:02:53]} 3. e5 {[%clk 0:02:57]}  c5 {[%clk 0:02:46]} 4. Nf3 {[%clk 0:02:55]}  Nc6 {[%clk 0:02:44]} 5. Bb5 {[%clk 0:02:47]}  Bd7 {[%clk 0:02:44]} 6. Bxc6 {[%clk 0:02:47]}  bxc6 {[%clk 0:02:44]} 7. O-O {[%clk 0:02:48]}  Ne7 {[%clk 0:02:44]} 8. d3 {[%clk 0:02:48]}  Nf5 {[%clk 0:02:44]} 9. c4 {[%clk 0:02:47]}  h5 {[%clk 0:02:44]} 10. b3 {[%clk 0:02:46]}  Be7 {[%clk 0:02:43]} 11. Nc3 {[%clk 0:02:43]}  Qc7 {[%clk 0:02:37]} 12. Na4 {[%clk 0:02:41]}  d4 {[%clk 0:02:27]} 13. Ba3 {[%clk 0:02:40]}  Ne3 {[%clk 0:02:23]} 14. Qd2 {[%clk 0:02:37]}  Nxf1 {[%clk 0:02:22]} 15. Rxf1 {[%clk 0:02:37]}  f6 {[%clk 0:02:20]} 16. exf6 {[%clk 0:02:34]}  gxf6 {[%clk 0:02:20]} 17. Bxc5 {[%clk 0:02:32]}  Bxc5 {[%clk 0:02:15]} 18. Nxc5 {[%clk 0:02:31]} 1-0